bitfinex-derivatives/quotes_ETHF0:USTF0_20240905
["timestamp","ask_amount","ask_price","bid_price","bid_amount"]
[1725576980442,0.42167,2372.1,2371.9,0.3589]
[1725576980741,0.3658,2372.0,2371.9,2.1791]
[1725576981133,0.3658,2372.0,2371.9,3.23337]
[1725576981338,0.3574,2372.1,2372.0,0.42169]
[1725576982339,0.7548,2372.2,2372.0,0.42169]
[1725576982542,0.7548,2372.2,2372.1,1.79167]
[1725576982742,1.17645,2372.2,2372.1,1.79167]
[1725576983943,0.7548,2372.2,2372.1,1.79167]
[1725576984143,2.76267048,2372.5,2372.4,0.42161]
[1725576984442,3.15497048,2372.5,2372.4,1.79161]
[1725576987162,3.17795804,2372.4,2372.3,1.37]
[1725576987460,3.17795804,2372.4,2372.3,1.79163]
[1725576990163,1.47565,2372.4,2372.3,1.37]
[1725576990361,1.47565,2372.4,2371.5,0.32662593]
[1725576990362,1.0541,2372.3,2371.7,0.098]
[1725576990566,0.42168,2372.1,2372.0,0.42168]
[1725576991066,0.80538,2372.1,2372.0,0.42168]
[1725576992663,3.56422913,2372.1,2372.0,0.42168]
[1725576994772,0.3837,2372.1,2372.0,0.42168]
[1725576994966,3.14254913,2372.1,2372.0,0.42168]
[1725576995565,3.56421913,2372.1,2372.0,0.42168]
[1725576995864,0.7226,2372.2,2372.1,0.42167]
[1725576995865,3.12354913,2372.2,2372.1,0.42167]
[1725576996168,2.75884913,2372.2,2372.1,1.79167]
[1725576996369,2.75884913,2372.3,2372.2,0.42165]
[1725576996970,2.75884913,2372.3,2372.2,1.47578]
[1725576997167,1.0964,2372.4,2372.3,0.42163]
[1725576997370,1.0964,2372.4,2372.3,1.79163]
[1725577000172,0.42165,2372.3,2372.2,1.37]
[1725577001071,0.42165,2372.3,2372.2,1.79165]
[1725577001972,0.42165,2372.3,2372.1,0.42166]
[1725577002178,0.42166,2372.2,2372.1,0.42166]
[1725577002367,4.82977472,2372.4,2372.3,0.42163]
[1725577002566,4.95794166,2372.4,2372.3,1.79163]
[1725577003889,4.95794166,2372.4,2372.3,1.37]
[1725577005680,4.82977472,2372.4,2372.3,1.37]
[1725577006280,4.95795088,2372.4,2372.3,1.37]
[1725577006476,4.95795088,2372.4,2372.3,1.79163]
[1725577006785,1.29110616,2372.4,2372.3,1.79163]
[1725577006985,1.41928857,2372.4,2372.3,1.79163]
[1725577007482,1.29110616,2372.4,2372.3,1.79163]
[1725577008178,4.60285088,2372.4,2372.3,1.79163]
[1725577008487,4.47467472,2372.4,2372.3,1.79163]
[1725577008787,1.2910955,2372.4,2372.3,1.79163]
[1725577008983,1.16293,2372.4,2372.3,1.79163]
[1725577009182,1.29108557,2372.4,2372.3,1.79163]
[1725577009387,0.54978726,2372.4,2372.3,1.79163]
[1725577010278,0.42163,2372.4,2372.3,1.79163]
[1725577010483,0.54978863,2372.4,2372.3,1.79163]
[1725577012287,0.54978863,2372.4,2372.3,2.18053]
[1725577017286,0.5497837,2372.4,2372.3,2.18053]
[1725577018585,1.05409,2372.3,2371.7,4.85816029]
[1725577018779,1.05409,2372.3,2371.8,0.78261]
[1725577018780,3.18669156,2371.9,2371.8,0.78261]
[1725577018985,0.4217,2371.9,2371.8,2.15261]
[1725577019695,0.8036,2371.9,2371.8,2.15261]
[1725577020088,3.73341472,2372.1,2372.0,0.42169]
[1725577020285,0.54987678,2372.1,2372.0,1.79169]
[1725577021196,0.12820678,2372.1,2372.0,1.79169]
[1725577021394,3.31174472,2372.3,2372.2,0.42165]
[1725577021591,0.51963,2372.4,2372.3,0.42163]
[1725577021592,4.46657472,2372.4,2372.3,0.42163]
[1725577021796,4.5947461,2372.4,2372.3,0.42163]
[1725577022495,0.42166,2372.2,2372.1,1.79166]
[1725577022689,0.54985131,2372.2,2372.1,1.79166]
[1725577023203,4.79314462,2372.2,2372.1,1.37]
[1725577023694,4.79314462,2372.2,2372.1,1.79167]
[1725577023695,3.73901462,2372.2,2372.1,1.79167]
[1725577023995,3.99540168,2372.2,2372.1,1.79167]
[1725577024200,0.67804706,2372.2,2372.1,1.79167]
[1725577024495,3.99540168,2372.2,2372.1,1.37]
[1725577024692,0.67804706,2372.2,2372.1,1.79167]
[1725577024891,0.12819198,2372.2,2372.1,1.79167]
[1725577025798,0.54984198,2372.2,2372.1,1.79167]
[1725577027197,0.12819198,2372.2,2372.1,1.79167]
[1725577027995,0.54984198,2372.2,2372.1,1.79167]
[1725577028199,0.42165,2372.2,2372.1,1.79167]
[1725577028391,0.42164,2372.3,2372.2,0.42163]
[1725577028596,0.5498141,2372.3,2372.2,0.42163]
[1725577028899,0.5498141,2372.3,2372.2,1.79163]
[1725577029902,3.73897462,2372.4,2372.3,0.42163]
[1725577030206,3.44552065,2372.4,2372.3,1.15903]
[1725577030695,0.54977603,2372.4,2372.3,1.15903]
[1725577031198,3.74528706,2372.5,2372.4,0.42161]
[1725577031500,3.87342885,2372.5,2372.4,0.42161]
[1725577033108,3.74528706,2372.5,2372.4,0.42161]
[1725577033300,3.87343757,2372.5,2372.4,0.42161]
[1725577035088,3.87343757,2372.5,2372.3,0.78232]
[1725577035089,0.42161,2372.4,2372.3,0.78232]
[1725577035292,4.22471513,2372.4,2372.3,0.78232]
[1725577035491,0.90736051,2372.4,2372.3,0.78232]
[1725577036296,0.77921,2372.4,2372.3,0.78232]
[1725577036490,4.09656462,2372.4,2372.3,0.78232]
[1725577037000,0.90737296,2372.4,2372.3,0.78232]
[1725577037303,0.3576,2372.4,2372.3,0.78232]
[1725577037496,0.90736428,2372.4,2372.3,0.78232]
[1725577037993,0.48575428,2372.4,2372.3,0.78232]
[1725577038390,0.90736428,2372.4,2372.3,0.78232]
[1725577039605,0.48575428,2372.4,2372.3,0.78232]
[1725577039800,0.3576,2372.4,2372.3,0.78232]
[1725577039999,0.48575295,2372.4,2372.3,0.78232]
[1725577040502,0.00632244,2372.5,2372.4,0.42161]
[1725577040797,0.00632244,2372.5,2372.4,2.84565]
[1725577040995,2.77050681,2372.5,2372.4,2.84565]
[1725577043799,2.77050681,2372.5,2372.4,1.79161]
[1725577044007,0.00632244,2372.5,2372.4,1.79161]
[1725577044401,3.13777102,2372.5,2372.4,1.79161]
[1725577044607,0.42165,2372.3,2372.1,0.39]
[1725577044805,0.42165,2372.3,2372.2,1.79164]
[1725577045006,1.15875,2372.3,2372.2,1.79164]
[1725577045904,1.15875,2372.3,2372.2,0.42164]
[1725577046101,0.42166,2372.2,2372.1,0.42166]
[1725577046298,0.42166,2372.2,2372.1,1.79166]
[1725577046702,1.15874,2372.3,2372.2,0.42165]
[1725577047304,0.7371,2372.3,2372.2,0.42165]
[1725577047806,1.15873,2372.3,2372.2,0.42165]
[1725577048701,1.15873,2372.3,2372.1,2.18445]
[1725577049103,0.42165,2372.2,2372.1,1.7628]
[1725577049702,1.15875,2372.3,2372.2,0.42165]
[1725577051110,0.7371,2372.3,2372.2,0.42165]
[1725577052005,1.15873,2372.3,2372.2,0.42165]
[1725577053313,0.7371,2372.3,2372.2,0.42165]
[1725577054815,1.15873,2372.3,2372.2,0.42165]
[1725577055202,0.7371,2372.3,2372.2,0.42165]
[1725577057610,1.15873,2372.3,2372.2,0.42165]
[1725577058104,0.7371,2372.3,2372.2,0.42165]
[1725577060614,0.00632244,2372.5,2372.4,0.42161]
[1725577061212,0.42792244,2372.5,2372.4,0.42161]
[1725577061520,0.55607519,2372.5,2372.4,0.42161]
[1725577061722,0.42792244,2372.5,2372.4,0.42161]
[1725577063420,0.00632244,2372.5,2372.4,0.42161]
[1725577063620,0.00632244,2372.5,2372.4,0.78711]
[1725577063621,0.55607301,2372.5,2372.4,0.78711]
[1725577063928,0.42792244,2372.5,2372.4,0.78711]
[1725577064417,0.00632244,2372.5,2372.4,0.78711]
[1725577068122,0.00632244,2372.5,2372.4,1.14301]
[1725577069310,0.00632244,2372.5,2372.4,2.19705]
[1725577069514,2.76936393,2372.5,2372.4,3.25109]
[1725577069724,0.00632244,2372.5,2372.4,3.25109]
[1725577069923,2.21664406,2372.5,2372.4,3.25109]
[1725577071825,0.00632244,2372.5,2372.4,1.14301]
[1725577072125,0.39062244,2372.5,2372.4,0.42161]
[1725577072327,0.78072244,2372.5,2372.4,0.42161]
[1725577072522,0.42161,2372.4,2372.3,1.79162]
[1725577072720,0.78711,2372.4,2372.3,1.79162]
[1725577073118,7.7885,2372.4,2371.7,4.30804019]
[1725577073430,2.76302706,2371.9,2371.8,1.79171]
[1725577074526,0.716,2372.0,2371.9,0.4217]
[1725577075217,1.13769,2372.0,2371.9,0.4217]
[1725577075418,0.42172,2371.9,2371.7,3.5739]
[1725577075617,3.18441511,2371.8,2371.7,4.5778]
[1725577076021,3.18441511,2371.8,2371.7,3.2078]
[1725577076223,0.42172,2371.8,2371.7,4.5778]
[1725577076415,3.18383291,2371.8,2371.7,4.5778]
[1725577077222,2.76211291,2371.8,2371.7,4.99954]
[1725577078827,3.18383291,2371.8,2371.7,4.99954]
[1725577079034,3.18383291,2371.8,2371.7,4.5778]
[1725577079429,3.18383291,2371.8,2371.5,0.3661]
[1725577079430,0.42174,2371.7,2371.5,0.78786]
[1725577079633,3.18387291,2371.6,2371.5,2.15786]
[1725577079834,0.42177,2371.6,2371.4,1.79810244]
[1725577080030,3.5364812,2371.5,2371.4,1.79810244]
[1725577080325,3.5364812,2371.5,2371.4,1.37632244]
[1725577080531,1.19737,2371.5,2371.4,0.00632244]
[1725577082435,3.95550988,2371.5,2371.4,0.00632244]
[1725577083331,3.95550988,2371.5,2371.4,0.42811244]
[1725577083332,1.19737,2371.5,2371.4,0.42811244]
[1725577083628,2.98128764,2371.5,2371.4,0.42811244]
[1725577085928,3.40305764,2371.5,2371.4,0.42811244]
[1725577086338,0.7756,2371.5,2371.4,0.42811244]
[1725577087936,1.19737,2371.5,2371.4,0.00632244]
[1725577088641,3.40108102,2371.5,2371.4,0.00632244]
[1725577089436,3.40108102,2371.5,2371.4,0.42811244]
[1725577090230,0.7756,2371.5,2371.4,0.42811244]
[1725577090430,0.3936,2371.5,2371.4,0.42811244]
[1725577093542,1.86981,2371.5,2371.4,0.00632244]
[1725577093740,1.86981,2371.5,2371.0,0.42186]
[1725577093741,1.05455,2371.3,2371.0,0.42186]
[1725577094045,0.42185,2371.1,2371.0,0.42186]
[1725577094437,6.7926516,2371.1,2370.6,3.28]
[1725577094635,0.42191,2370.8,2370.7,0.4219]
[1725577095542,0.4219,2370.9,2370.7,0.4219]
[1725577095841,0.4219,2370.9,2370.6,3.28632244]
[1725577095842,0.42192,2370.7,2370.6,0.00632244]
[1725577096248,1.16122,2370.7,2370.6,0.42825244]
[1725577096631,0.7393,2370.7,2370.6,0.42825244]
[1725577096837,0.42189,2370.9,2370.7,0.42191]
[1725577097140,0.42191,2370.8,2370.6,0.00632244]
[1725577097339,0.42192,2370.7,2370.6,0.00632244]
[1725577100331,0.42191,2370.8,2370.6,0.42825244]
[1725577100840,1.1612,2370.9,2370.7,0.42192]
[1725577101145,0.4219,2370.8,2370.7,0.42192]
[1725577103440,0.4219,2370.8,2370.7,0.42191]
[1725577105646,1.16119,2370.9,2370.7,0.42191]
[1725577105841,1.16119,2370.9,2370.6,0.00632244]
[1725577106144,1.16119,2370.9,2370.7,0.4219]
[1725577106339,1.16119,2370.9,2370.8,0.3611]
[1725577107443,1.16119,2370.9,2370.8,0.783]
[1725577107644,0.42189,2370.9,2370.8,0.783]
[1725577107837,3.59452244,2371.1,2370.9,0.42187]
[1725577108038,0.42186,2371.0,2370.9,0.79487]
[1725577108347,3.59452244,2371.1,2370.9,0.79487]
[1725577108348,4.01638244,2371.1,2370.9,0.79487]
[1725577108545,4.01638244,2371.1,2371.0,0.42186]
[1725577108546,3.63598244,2371.1,2371.0,0.42186]
[1725577108737,3.63598244,2371.1,2370.9,0.79486]
[1725577109350,0.42186,2371.0,2370.9,0.79486]
[1725577112837,3.63598244,2371.1,2371.0,0.42186]
[1725577115345,3.21412244,2371.1,2371.0,0.42186]
[1725577115652,3.63597244,2371.1,2371.0,0.42186]
[1725577117253,3.63598244,2371.1,2371.0,0.42186]
[1725577120458,5.83883404,2371.1,2371.0,0.42186]
[1725577121162,3.21412244,2371.1,2371.0,0.42186]
[1725577121953,0.00632244,2371.1,2371.0,0.42186]
[1725577123357,2.20917404,2371.1,2371.0,0.42186]
[1725577123854,0.00632244,2371.1,2371.0,0.42186]
[1725577124362,2.20917404,2371.1,2371.0,0.42186]
[1725577125365,2.20917404,2371.1,2371.0,1.79186]
[1725577125661,2.20917404,2371.1,2371.0,0.42186]
[1725577125955,2.63102404,2371.1,2371.0,0.42186]
[1725577126159,0.42817244,2371.1,2371.0,0.42186]
[1725577126462,2.6349346,2371.1,2371.0,0.42186]
[1725577126856,0.42817244,2371.1,2371.0,0.42186]
[1725577127057,2.63500267,2371.1,2371.0,0.42186]
[1725577127462,2.63500234,2371.1,2371.0,0.42186]
[1725577130568,0.42817244,2371.1,2371.0,0.42186]
[1725577131258,3.18631232,2371.1,2371.0,0.42186]
[1725577136362,3.18631232,2371.1,2370.9,1.743]
[1725577136363,0.42186,2371.0,2370.9,2.16487]
[1725577136562,3.17999988,2371.0,2370.9,2.16487]
[1725577136766,0.42186,2371.0,2370.9,2.16487]
[1725577137066,3.17999988,2371.0,2370.9,2.16487]
[1725577141270,2.75813988,2371.0,2370.9,2.16487]
[1725577141471,2.76446232,2371.1,2371.0,0.42186]
[1725577141673,0.00632244,2371.1,2371.0,6.37296]
[1725577142069,2.21648951,2371.1,2371.0,6.37296]
[1725577142981,0.00632244,2371.1,2371.0,2.15536]
[1725577143182,2.76446232,2371.1,2371.0,2.15536]
[1725577146277,2.76446232,2371.1,2371.0,1.79186]
[1725577146977,2.76446232,2371.1,2371.0,7.06413]
[1725577147378,2.76446232,2371.1,2371.0,6.00946]
[1725577149577,2.76446232,2371.1,2371.0,7.06413]
[1725577149883,0.00632244,2371.1,2371.0,14.1188]
[1725577150976,0.00632244,2371.1,2371.0,8.1188]
[1725577151180,2.21736866,2371.1,2371.0,8.1188]
[1725577152492,2.21736866,2371.1,2371.0,14.1188]
[1725577152782,0.00632244,2371.1,2371.0,14.1188]
[1725577156283,0.00632244,2371.1,2371.0,8.1188]
[1725577156683,0.00632244,2371.1,2371.0,14.1188]
[1725577158883,0.00632244,2371.1,2371.0,8.1188]
[1725577162883,0.00632244,2371.1,2371.0,1.47653]
[1725577163190,2.60116866,2371.1,2371.0,0.42186]
[1725577163379,3.14826232,2371.1,2371.0,0.42186]
[1725577163987,3.57011232,2371.1,2371.0,0.42186]
[1725577164392,0.42186,2371.0,2370.9,4.99967]
[1725577164590,3.53979988,2371.0,2370.9,1.37]
[1725577165594,3.53979988,2371.0,2370.9,1.79188]
[1725577165789,3.11793988,2371.0,2370.9,1.79188]
[1725577174787,0.3598,2371.0,2370.9,1.79188]
[1725577175789,2.57036349,2371.0,2370.9,1.79188]
[1725577176295,0.3598,2371.0,2370.9,1.79188]
[1725577176699,2.57041743,2371.0,2370.9,1.79188]
[1725577176895,2.57041882,2371.0,2370.9,1.79188]
[1725577177098,0.3598,2371.0,2370.9,1.79188]
[1725577177297,2.57045531,2371.0,2370.9,1.79188]
[1725577177605,2.57045774,2371.0,2370.9,1.79188]
[1725577178198,2.57045774,2371.0,2370.9,2.84659]
[1725577178509,0.3598,2371.0,2370.9,2.84659]
[1725577180706,2.57061931,2371.0,2370.9,2.84659]
[1725577186109,2.57061931,2371.0,2370.9,3.09387903]
[1725577186706,2.21081931,2371.0,2370.9,4.14858903]
[1725577187408,2.21081931,2371.0,2370.9,44.94858903]
[1725577188709,2.21081931,2371.0,2370.9,4.14858903]
[1725577189411,0.00632244,2371.1,2371.0,2.5312]
[1725577189708,0.00632244,2371.1,2371.0,4.6669]
[1725577198416,0.00632244,2371.1,2371.0,8.8845]
[1725577199127,2.30854337,2371.4,2371.3,2.53087]
[1725577199320,2.19156256,2371.6,2371.5,1.47621]
[1725577199515,0.3896,2371.7,2371.6,1.47616]
[1725577199814,0.3896,2371.7,2371.6,0.42176]
[1725577200018,0.3896,2371.7,2371.6,1.79176]
[1725577201414,3.14577921,2371.8,2371.7,0.42174]
[1725577201820,0.3826,2371.8,2371.7,0.42174]
[1725577202529,0.80433,2371.8,2371.6,1.79174]
[1725577202720,0.42177,2371.6,2371.4,0.42179]
[1725577202921,0.371,2371.5,2371.4,0.42179]
[1725577204133,0.371,2371.5,2371.4,1.79179]
[1725577204433,0.391,2371.7,2371.4,1.37]
[1725577204630,0.7548,2371.7,2371.6,1.79176]
[1725577205622,0.42176,2371.6,2371.4,0.42179]
[1725577205927,3.18493921,2371.6,2371.4,0.42179]
[1725577206329,3.18494921,2371.6,2371.3,1.7918]
[1725577206530,0.42177,2371.5,2371.3,1.7918]
[1725577206822,0.3914,2371.4,2371.3,1.7918]
[1725577207031,0.3914,2371.4,2370.9,3.2078]
[1725577207032,1.18979,2371.4,2370.9,3.2078]
[1725577207232,0.3821,2371.3,2371.0,1.37]
[1725577207425,0.3821,2371.3,2371.2,0.42183]
[1725577210726,0.80391,2371.3,2371.2,0.42183]
[1725577210926,0.3821,2371.3,2371.2,0.42183]
[1725577211128,3.14527921,2371.3,2371.2,0.42183]
[1725577212835,0.42183,2371.2,2371.1,0.42184]
[1725577213033,0.42183,2371.2,2371.1,0.42185]
[1725577213536,3.56709921,2371.3,2371.1,0.42185]
[1725577213831,0.3821,2371.3,2371.2,0.42183]
[1725577214049,0.3821,2371.3,2371.2,4.09583]
[1725577215231,0.768,2371.4,2371.3,0.42181]
[1725577215533,0.768,2371.4,2371.3,0.79431]
[1725577216123,3.11887921,2371.6,2371.5,0.42177]
[1725577216320,2.76317921,2371.8,2371.4,4.33448]
[1725577216535,0.7242,2371.7,2371.6,0.42176]
[1725577218524,0.7242,2371.7,2371.6,0.80766]
[1725577220735,0.7242,2371.7,2371.6,0.42176]
[1725577222034,0.7242,2371.7,2371.4,3.6711]
[1725577222035,8.75853921,2371.7,2371.3,0.4218]
[1725577222239,0.42176,2371.6,2371.4,0.42179]
[1725577222538,3.90912921,2371.7,2371.5,0.42177]
[1725577222740,3.48737921,2371.7,2371.2,3.89098202]
[1725577223034,0.42176,2371.6,2371.4,0.42179]
[1725577223740,3.90912921,2371.7,2371.4,0.42179]
[1725577224331,3.48737921,2371.7,2371.6,0.42176]
[1725577224643,0.7242,2371.7,2371.6,0.42176]
[1725577225331,1.14594,2371.7,2371.5,0.77946]
[1725577225531,3.90911921,2371.7,2371.5,0.42176]
[1725577225727,3.90911921,2371.7,2371.4,0.42178]
[1725577225935,3.90911921,2371.7,2371.5,0.42177]
[1725577226126,2.76317921,2371.6,2371.5,0.42177]
[1725577226327,3.48458811,2371.7,2371.6,0.42176]
[1725577226538,8.12312811,2371.7,2371.5,0.42176]
[1725577226842,2.76038811,2371.6,2371.5,0.42176]
[1725577227637,3.18215811,2371.6,2371.4,0.42178]
[1725577227942,3.18216811,2371.5,2371.4,0.42179]
[1725577229935,2.76038811,2371.5,2371.4,0.42179]
[1725577231044,3.18215811,2371.5,2371.4,0.42179]
[1725577231242,0.42177,2371.5,2371.4,0.42179]
[1725577231640,2.76166335,2371.5,2371.4,0.42179]
[1725577232038,3.18343335,2371.5,2371.4,0.42179]
[1725577232342,2.76166335,2371.5,2371.4,0.42179]
[1725577232941,2.76166335,2371.5,2371.4,0.77649]
[1725577233643,2.76166335,2371.6,2371.5,0.42177]
[1725577233847,2.76166335,2371.6,2371.5,1.79177]
[1725577234637,3.90761335,2371.7,2371.5,1.79177]
[1725577234841,2.76166335,2371.6,2371.5,1.79177]
[1725577236838,6.97846335,2371.6,2371.1,3.2078]
[1725577237039,3.18346335,2371.4,2371.2,0.42182]
[1725577237242,3.51736335,2371.3,2371.2,0.42182]
[1725577237447,3.90466335,2371.3,2371.2,0.42182]
[1725577238446,3.90466335,2371.3,2370.8,44.26375541]
[1725577238447,8.12146335,2371.3,2370.8,44.26375541]
[1725577238651,2.76166335,2371.0,2370.9,0.42188]
[1725577239137,0.42184,2371.2,2370.9,0.42188]
[1725577239138,3.18350335,2371.2,2371.1,0.42185]
[1725577239343,6.97926335,2371.2,2371.1,0.42185]
[1725577240149,2.76166335,2371.2,2371.1,0.42185]
[1725577240545,3.90466335,2371.3,2371.2,0.42183]
[1725577240740,3.90466335,2371.3,2371.0,0.388]
[1725577240741,3.90476669,2371.3,2371.0,0.388]
[1725577240947,3.90476669,2371.3,2371.0,0.42185]
[1725577240948,2.20951271,2371.1,2371.0,0.42185]
[1725577241144,0.42186,2371.1,2370.8,44.80319]
[1725577241343,7.36908849,2371.0,2370.6,3.28632244]
[1725577241546,3.51928849,2370.9,2370.8,0.42189]
[1725577242538,2.20900804,2371.0,2370.9,0.42188]
[1725577242742,2.20900804,2371.0,2370.9,0.80988]
[1725577244349,2.20900804,2371.1,2371.0,0.42186]
[1725577244550,2.20900804,2371.1,2371.0,0.77796]
[1725577244849,2.76178849,2371.2,2371.0,0.77795]
[1725577245654,2.76178849,2371.2,2370.8,3.28]
[1725577245844,2.20804049,2371.0,2370.9,0.42187]
[1725577246254,2.58154049,2371.0,2370.9,0.42187]
[1725577250849,2.76178849,2371.2,2371.0,0.42186]
[1725577251044,3.56051849,2371.2,2371.1,0.3883]
[1725577251349,7.77811849,2371.2,2371.1,0.3883]
[1725577252656,3.13868849,2371.2,2371.1,0.3883]
[1725577253159,7.77811849,2371.2,2371.0,0.42186]
[1725577253458,3.56051849,2371.2,2371.0,0.42186]
[1725577254260,3.56051849,2371.2,2371.1,0.42185]
[1725577254454,7.35628849,2371.2,2371.1,0.42185]
[1725577254661,7.35628849,2371.2,2371.1,1.47647]
[1725577254662,2.76178849,2371.2,2371.1,1.47647]
[1725577254961,3.83559505,2371.5,2371.2,0.42183]
[1725577254962,2.20727914,2371.3,2371.2,0.42183]
[1725577255157,2.76178849,2371.3,2371.2,0.80663]
[1725577255351,3.55668849,2371.4,2371.2,0.80663]
[1725577255551,3.55669849,2371.4,2371.2,0.80663]
[1725577256459,2.20718891,2371.3,2371.2,0.80663]
[1725577256865,3.55669849,2371.4,2371.2,0.80663]
[1725577258459,0.42181,2371.3,2371.2,0.80663]
[1725577258655,3.18359849,2371.3,2371.2,0.80663]
[1725577258959,2.76178849,2371.3,2371.2,0.80663]
[1725577259365,3.55669849,2371.4,2371.2,0.80663]
[1725577259555,2.20719962,2371.3,2371.2,0.80663]
[1725577259756,3.55669849,2371.4,2371.2,0.80663]
[1725577259963,2.20719646,2371.3,2371.2,0.80663]
[1725577260257,3.55669849,2371.4,2371.2,0.80663]
[1725577260563,3.55669849,2371.4,2371.2,0.80662]
[1725577261965,2.76178849,2371.3,2371.2,0.80662]
[1725577262462,3.18359849,2371.3,2371.2,0.42182]
[1725577262858,11.24093849,2371.3,2370.8,3.2078]
[1725577263061,2.62936634,2371.0,2370.9,0.42188]
[1725577263463,0.42188,2370.9,2370.8,4.02329]
[1725577263663,2.62965998,2370.9,2370.8,4.02329]
[1725577264363,2.20777998,2370.9,2370.8,4.02329]
[1725577266460,1.1134,2371.0,2370.9,0.42188]
[1725577266461,2.20777998,2371.0,2370.9,0.42188]
[1725577266760,2.20777998,2371.2,2371.1,0.42185]
[1725577267470,2.20777998,2371.2,2371.1,0.78555]
[1725577268675,2.20777998,2371.2,2371.1,13.42777]
[1725577268861,0.098,2371.6,2371.5,1.47621]
[1725577269165,0.00632244,2371.9,2371.8,0.42172]
[1725577269361,0.00632244,2371.9,2371.8,44.42952]
[1725577269561,2.20682688,2372.2,2371.8,49.27811]
[1725577269776,2.59722688,2372.3,2372.2,0.42165]
[1725577269970,2.85738292,2372.4,2372.0,1.37]
[1725577269971,2.20682688,2372.4,2372.3,0.42163]
[1725577270279,2.20545767,2372.4,2372.3,0.42163]
[1725577270973,2.59585767,2372.5,2372.3,0.42163]
[1725577271677,2.59585767,2372.5,2372.2,0.81524]
[1725577272178,0.3904,2372.5,2372.2,0.81524]
[1725577272474,0.3904,2372.5,2372.3,0.42163]
[1725577273076,0.3904,2372.5,2372.2,0.81524]
[1725577273877,0.3904,2372.5,2372.2,0.3936]
[1725577274087,0.004215,2372.6,2372.5,0.4216]
[1725577275890,0.004215,2372.6,2372.2,0.3936]
[1725577276186,0.004215,2372.6,2372.4,0.4216]
[1725577276683,0.004215,2372.6,2372.5,0.4216]
[1725577278287,0.004215,2372.6,2372.4,0.4216]
[1725577278589,0.004215,2372.6,2372.5,0.4216]
[1725577279778,0.004215,2372.6,2372.5,11.6908]
[1725577279986,0.004215,2372.6,2372.5,5.6908]
[1725577280184,0.004215,2372.6,2372.5,11.6908]
[1725577281388,5e-06,2372.6,2372.5,12.7448]
[1725577281891,0.098,2373.1,2373.0,0.42151]
[1725577282091,0.3569,2373.4,2373.2,0.42147]
[1725577282686,0.77834,2373.4,2373.1,0.81058]
[1725577283987,0.42146,2373.3,2373.1,0.81058]
[1725577286399,0.42146,2373.3,2373.2,0.42147]
[1725577286889,0.77835,2373.4,2373.2,0.42147]
[1725577287090,0.42145,2373.3,2373.2,0.42147]
[1725577289885,0.55958,2373.5,2373.3,0.42144]
[1725577290198,0.42144,2373.4,2373.3,0.42144]
[1725577292697,0.94788,2373.5,2373.3,0.42144]
[1725577293198,0.42144,2373.4,2373.3,0.42144]
[1725577294385,0.52645,2373.5,2373.1,0.753]
[1725577294591,0.42145,2373.4,2373.3,0.42145]
[1725577303195,0.52645,2373.5,2373.1,2.123]
[1725577303196,0.42146,2373.3,2373.2,0.42146]
[1725577303395,0.42145,2373.4,2373.3,0.42145]
[1725577307404,11.5836,2373.4,2372.8,3.2078]
[1725577307602,1.05362,2373.4,2372.8,4.26166]
[1725577307797,0.52645,2373.5,2373.2,1.37]
[1725577308002,4.00371,2373.6,2373.5,0.42142]
[1725577308503,4.00371,2373.6,2373.4,0.42143]
[1725577308504,0.42142,2373.5,2373.4,0.42143]
[1725577308710,3.5823,2373.6,2373.5,0.42142]
[1725577309011,4.0037,2373.6,2373.5,0.42142]
[1725577309798,0.42144,2373.4,2373.3,1.20866244]
[1725577311414,0.42144,2373.4,2373.3,0.00632244]
[1725577311621,5.68864,2373.4,2373.3,0.00632244]
[1725577311807,9.95004,2373.4,2373.3,0.00632244]
[1725577313008,0.42156,2372.7,2372.6,0.114]
[1725577313222,1.05402,2372.5,2372.0,0.42168]
[1725577313404,3.25585478,2372.5,2371.9,44.08]
[1725577313709,0.42165,2372.3,2372.0,0.42168]
[1725577314015,0.42165,2372.2,2372.0,0.42167]
[1725577314418,2.62347478,2372.3,2372.0,0.42167]
[1725577314621,0.42166,2372.2,2372.0,0.42167]
[1725577315112,0.42169,2372.0,2371.9,0.00632244]
[1725577315314,3.28,2372.0,2371.3,3.28]
[1725577315505,0.42177,2371.6,2371.3,0.42181]
[1725577315709,0.42177,2371.6,2371.4,40.8]
[1725577316108,2.62360478,2371.6,2371.4,40.8]
[1725577316312,2.62358478,2371.7,2371.4,40.8]
[1725577316517,0.42175,2371.7,2371.4,40.8]
[1725577317219,2.20183478,2371.8,2371.4,40.8]
[1725577317406,0.42175,2371.7,2371.4,40.8]
[1725577317808,2.94973478,2371.9,2371.4,41.22179]
[1725577318216,0.42175,2371.7,2371.4,41.22179]
[1725577318817,0.42173,2371.8,2371.4,41.22179]
[1725577319126,0.42175,2371.7,2371.4,41.22179]
[1725577321107,3.25605478,2372.0,2371.4,40.8]
[1725577321108,2.20183478,2372.0,2371.4,40.8]
[1725577321317,0.4217,2372.0,2371.7,3.70173]
[1725577321620,0.42171,2371.9,2371.6,0.42175]
[1725577322014,0.4217,2372.0,2371.7,0.42173]
[1725577322323,0.4217,2372.0,2371.8,0.42171]
[1725577322621,3.21412244,2372.2,2371.7,3.28]
[1725577322918,3.21412244,2372.2,2371.9,0.4217]
[1725577322919,3.63578244,2372.2,2371.9,0.4217]
[1725577324023,3.21412244,2372.2,2371.8,0.7487]
[1725577325021,0.42177,2371.5,2371.4,40.8]
[1725577325229,0.42179,2371.4,2371.3,0.00632244]
[1725577326315,0.42178,2371.5,2371.3,0.42813244]
[1725577326826,0.42179,2371.4,2371.3,0.00632244]
[1725577327730,4.63859,2371.4,2371.3,0.00632244]
[1725577328124,5.69308,2371.4,2371.3,0.00632244]
[1725577328423,11.69308,2371.4,2371.3,0.00632244]
[1725577329319,4.63859,2371.4,2371.3,0.00632244]
[1725577330321,4.2168,2371.4,2371.3,0.00632244]
[1725577331930,3.62957,2371.6,2371.3,0.42813244]